[Event "Titled Tuesday Blitz May 30 Early 2023"]
[White "Korchmar, Vasiliy"]
[Black "Ahmadzada, Ahmad"]
[WhiteFideId "24131750"]
[BlackFideId "13413007"]
[WhiteElo "2370"]
[BlackElo "2388"]
[Result "0-1"]
[Round "06"]
[TimeControl "180+2"]
[Date "2023.05.30"]
[WhiteClock "0:00:03"]
[BlackClock "0:01:53"]

1. e4 {[%clk 0:03:00]}  d5 {[%clk 0:02:57]} 2. exd5 {[%clk 0:03:00]}  Qxd5 {[%clk 0:02:58]} 3. Nc3 {[%clk 0:03:01]}  Qd8 {[%clk 0:02:58]} 4. d4 {[%clk 0:03:01]}  Nf6 {[%clk 0:02:59]} 5. Nf3 {[%clk 0:03:01]}  Bg4 {[%clk 0:02:59]} 6. h3 {[%clk 0:03:01]}  Bxf3 {[%clk 0:02:59]} 7. Qxf3 {[%clk 0:03:01]}  c6 {[%clk 0:03:00]} 8. Be3 {[%clk 0:02:58]}  e6 {[%clk 0:03:00]} 9. Bd3 {[%clk 0:02:56]}  Nbd7 {[%clk 0:02:59]} 10. O-O {[%clk 0:02:56]}  Be7 {[%clk 0:02:59]} 11. Rad1 {[%clk 0:02:54]}  O-O {[%clk 0:02:59]} 12. Ne2 {[%clk 0:02:48]}  Nd5 {[%clk 0:02:55]} 13. Bd2 {[%clk 0:02:46]}  Nb4 {[%clk 0:02:52]} 14. Bxb4 {[%clk 0:02:47]}  Bxb4 {[%clk 0:02:52]} 15. Ng3 {[%clk 0:02:38]}  Be7 {[%clk 0:02:48]} 16. Rfe1 {[%clk 0:02:33]}  g6 {[%clk 0:02:44]} 17. c3 {[%clk 0:02:21]}  Nf6 {[%clk 0:02:40]} 18. h4 {[%clk 0:02:19]}  Qd5 {[%clk 0:02:38]} 19. Qe2 {[%clk 0:02:08]}  Qxa2 {[%clk 0:02:29]} 20. Bc4 {[%clk 0:01:41]}  Qa5 {[%clk 0:02:28]} 21. b4 {[%clk 0:01:22]}  Qc7 {[%clk 0:02:27]} 22. h5 {[%clk 0:01:22]}  Nd5 {[%clk 0:02:18]} 23. Qf3 {[%clk 0:01:13]}  Kg7 {[%clk 0:02:12]} 24. Re4 {[%clk 0:01:02]}  Bd6 {[%clk 0:02:04]} 25. Rg4 {[%clk 0:00:37]}  f5 {[%clk 0:02:00]} 26. Rh4 {[%clk 0:00:16]}  g5 {[%clk 0:01:54]} 27. h6+ {[%clk 0:00:16]}  Kh8 {[%clk 0:01:54]} 28. Rh5 {[%clk 0:00:14]}  g4 {[%clk 0:01:53]} 29. Qe2 {[%clk 0:00:08]}  Nf4 {[%clk 0:01:53]} 30. Qxe6 {[%clk 0:00:03]}  Nxe6 {[%clk 0:01:53]} 0-1


[Site "https://www.chess.com"]

[Event "Titled Tuesday Blitz May 30 Early 2023"]
[White "NikaVolkov"]
[Black "Rozen, Eytan"]
[BlackFideId "2816750"]
[WhiteElo "2644"]
[BlackElo "2451"]
[Result "1-0"]
[Round "06"]
[TimeControl "180+2"]
[Date "2023.05.30"]
[WhiteClock "0:00:14"]
[BlackClock "0:00:00"]

1. d4 {[%clk 0:03:00]}  e6 {[%clk 0:02:52]} 2. Nf3 {[%clk 0:03:01]}  f5 {[%clk 0:02:50]} 3. e3 {[%clk 0:03:02]}  Nf6 {[%clk 0:02:50]} 4. c4 {[%clk 0:03:02]}  b6 {[%clk 0:02:47]} 5. Bd3 {[%clk 0:03:03]}  Bb7 {[%clk 0:02:48]} 6. O-O {[%clk 0:03:03]}  Be7 {[%clk 0:02:47]} 7. Nbd2 {[%clk 0:03:04]}  Ne4 {[%clk 0:02:44]} 8. Qc2 {[%clk 0:03:01]}  Nxd2 {[%clk 0:02:43]} 9. Nxd2 {[%clk 0:03:00]}  O-O {[%clk 0:02:42]} 10. e4 {[%clk 0:03:01]}  Nc6 {[%clk 0:02:42]} 11. d5 {[%clk 0:02:47]}  Nb4 {[%clk 0:02:37]} 12. Qb3 {[%clk 0:02:47]}  a5 {[%clk 0:02:26]} 13. Bb1 {[%clk 0:02:11]}  Na6 {[%clk 0:01:54]} 14. exf5 {[%clk 0:01:58]}  exf5 {[%clk 0:01:51]} 15. Nf3 {[%clk 0:01:50]}  Nc5 {[%clk 0:01:50]} 16. Qc2 {[%clk 0:01:41]}  c6 {[%clk 0:01:46]} 17. dxc6 {[%clk 0:01:38]}  Bxc6 {[%clk 0:01:46]} 18. Nd4 {[%clk 0:01:35]}  Be4 {[%clk 0:01:44]} 19. Qd2 {[%clk 0:01:35]}  d5 {[%clk 0:01:32]} 20. Nc6 {[%clk 0:01:31]}  Qc7 {[%clk 0:01:20]} 21. cxd5 {[%clk 0:01:29]}  Bd6 {[%clk 0:01:16]} 22. h3 {[%clk 0:01:24]}  Rf6 {[%clk 0:01:12]} 23. f3 {[%clk 0:01:18]}  Bxb1 {[%clk 0:00:59]} 24. Rxb1 {[%clk 0:01:19]}  Re8 {[%clk 0:00:50]} 25. b3 {[%clk 0:01:16]}  Bg3 {[%clk 0:00:38]} 26. Bb2 {[%clk 0:01:08]}  Bf4 {[%clk 0:00:30]} 27. Qc2 {[%clk 0:00:52]}  Be3+ {[%clk 0:00:28]} 28. Kh1 {[%clk 0:00:44]}  Qg3 {[%clk 0:00:28]} 29. f4 {[%clk 0:00:42]}  Rh6 {[%clk 0:00:18]} 30. Qxf5 {[%clk 0:00:29]}  Ne4 {[%clk 0:00:16]} 31. Ne5 {[%clk 0:00:25]}  Rf8 {[%clk 0:00:13]} 32. Qg4 {[%clk 0:00:26]}  Qxg4 {[%clk 0:00:10]} 33. Nxg4 {[%clk 0:00:26]}  Ng3+ {[%clk 0:00:10]} 34. Kh2 {[%clk 0:00:26]}  Nxf1+ {[%clk 0:00:11]} 35. Rxf1 {[%clk 0:00:27]}  Bxf4+ {[%clk 0:00:11]} 36. Kh1 {[%clk 0:00:19]}  Rg6 {[%clk 0:00:10]} 37. Ba3 {[%clk 0:00:18]}  Bd6 {[%clk 0:00:09]} 38. Rxf8+ {[%clk 0:00:16]}  Bxf8 {[%clk 0:00:08]} 39. Bb2 {[%clk 0:00:16]}  Rd6 {[%clk 0:00:07]} 40. Ne3 {[%clk 0:00:17]}  Rd7 {[%clk 0:00:07]} 41. Bd4 {[%clk 0:00:16]}  b5 {[%clk 0:00:06]} 42. Kg1 {[%clk 0:00:15]}  Bb4 {[%clk 0:00:06]} 43. Kf2 {[%clk 0:00:15]}  Bd2 {[%clk 0:00:07]} 44. Nf5 {[%clk 0:00:14]}  g6 {[%clk 0:00:04]} 45. Ng3 {[%clk 0:00:14]}  Rxd5 {[%clk 0:00:04]} 46. Bb6 {[%clk 0:00:11]}  Bb4 {[%clk 0:00:03]} 47. Ne4 {[%clk 0:00:11]}  Kg7 {[%clk 0:00:03]} 48. Ke3 {[%clk 0:00:11]}  Be7 {[%clk 0:00:03]} 49. Bxa5 {[%clk 0:00:11]}  b4 {[%clk 0:00:03]} 50. Bb6 {[%clk 0:00:11]}  Rb5 {[%clk 0:00:03]} 51. Bd4+ {[%clk 0:00:11]}  Kf7 {[%clk 0:00:03]} 52. Kd3 {[%clk 0:00:12]}  Rb7 {[%clk 0:00:02]} 53. Kc4 {[%clk 0:00:12]}  Rc7+ {[%clk 0:00:03]} 54. Nc5 {[%clk 0:00:13]}  Bxc5 {[%clk 0:00:02]} 55. Bxc5 {[%clk 0:00:14]}  Rd7 {[%clk 0:00:03]} 56. Kxb4 {[%clk 0:00:13]}  Rd4+ {[%clk 0:00:00]} 57. Bxd4 {[%clk 0:00:14]} 1-0


[Site "https://www.chess.com"]

[Event "Titled Tuesday Blitz May 30 Early 2023"]
[White "RobertDowneyJr0111"]
[Black "Vitiugov, Nikita"]
[BlackFideId "4152956"]
[WhiteElo "2638"]
[BlackElo "2673"]
[Result "0-1"]
[Round "06"]
[TimeControl "180+2"]
[Date "2023.05.30"]
[WhiteClock "0:00:00"]
[BlackClock "0:01:39"]

1. e4 {[%clk 0:03:00]}  c5 {[%clk 0:02:59]} 2. Nf3 {[%clk 0:03:01]}  a6 {[%clk 0:02:58]} 3. c3 {[%clk 0:03:00]}  e6 {[%clk 0:02:58]} 4. d4 {[%clk 0:03:00]}  d5 {[%clk 0:02:58]} 5. e5 {[%clk 0:02:53]}  Bd7 {[%clk 0:02:56]} 6. Nbd2 {[%clk 0:02:43]}  Qb6 {[%clk 0:02:49]} 7. Be2 {[%clk 0:02:26]}  Nc6 {[%clk 0:02:47]} 8. O-O {[%clk 0:02:23]}  cxd4 {[%clk 0:02:40]} 9. Nb3 {[%clk 0:02:24]}  dxc3 {[%clk 0:02:38]} 10. bxc3 {[%clk 0:02:24]}  Qc7 {[%clk 0:02:35]} 11. c4 {[%clk 0:02:10]}  Nge7 {[%clk 0:02:34]} 12. Ba3 {[%clk 0:01:26]}  Nxe5 {[%clk 0:02:19]} 13. Nxe5 {[%clk 0:01:24]}  Qxe5 {[%clk 0:02:20]} 14. Bf3 {[%clk 0:01:20]}  dxc4 {[%clk 0:02:20]} 15. Re1 {[%clk 0:01:15]}  Qc7 {[%clk 0:02:15]} 16. Bd6 {[%clk 0:01:12]}  Qc8 {[%clk 0:02:15]} 17. Nc5 {[%clk 0:00:49]}  Bc6 {[%clk 0:02:14]} 18. Bh5 {[%clk 0:00:32]}  Ng6 {[%clk 0:01:53]} 19. Bxf8 {[%clk 0:00:20]}  Kxf8 {[%clk 0:01:53]} 20. Qd6+ {[%clk 0:00:16]}  Kg8 {[%clk 0:01:53]} 21. Rad1 {[%clk 0:00:16]}  Qf8 {[%clk 0:01:49]} 22. Qd4 {[%clk 0:00:16]}  Qe7 {[%clk 0:01:39]} 23. Qxc4 {[%clk 0:00:00]}  Qg5 {[%clk 0:01:39]} 0-1


[Site "https://www.chess.com"]

[Event "Titled Tuesday Blitz May 30 Early 2023"]
[White "Kravtsiv, Martyn"]
[Black "Garv Gaur"]
[WhiteFideId "14113147"]
[BlackFideId "45030839"]
[WhiteElo "2695"]
[BlackElo "2068"]
[Result "1-0"]
[Round "06"]
[TimeControl "180+2"]
[Date "2023.05.30"]
[WhiteClock "0:00:29"]
[BlackClock "0:00:00"]

1. e4 {[%clk 0:03:00]}  g6 {[%clk 0:02:43]} 2. d4 {[%clk 0:02:59]}  Bg7 {[%clk 0:02:41]} 3. Nc3 {[%clk 0:02:59]}  d5 {[%clk 0:02:40]} 4. exd5 {[%clk 0:02:58]}  Nf6 {[%clk 0:02:40]} 5. Bc4 {[%clk 0:02:57]}  Nbd7 {[%clk 0:02:40]} 6. Bg5 {[%clk 0:02:54]}  Nb6 {[%clk 0:02:39]} 7. Bxf6 {[%clk 0:02:54]}  Bxf6 {[%clk 0:02:39]} 8. Bb3 {[%clk 0:02:54]}  O-O {[%clk 0:02:36]} 9. Nge2 {[%clk 0:02:54]}  Bf5 {[%clk 0:02:33]} 10. O-O {[%clk 0:02:52]}  Qd6 {[%clk 0:02:32]} 11. a4 {[%clk 0:02:43]}  a5 {[%clk 0:02:30]} 12. Re1 {[%clk 0:02:40]}  Rad8 {[%clk 0:02:26]} 13. Ng3 {[%clk 0:02:40]}  c6 {[%clk 0:02:07]} 14. Nxf5 {[%clk 0:02:38]}  gxf5 {[%clk 0:02:07]} 15. dxc6 {[%clk 0:02:35]}  bxc6 {[%clk 0:02:07]} 16. Qh5 {[%clk 0:02:31]}  Bxd4 {[%clk 0:01:52]} 17. Qxf5 {[%clk 0:02:29]}  Kh8 {[%clk 0:01:19]} 18. Ne4 {[%clk 0:02:27]}  Qg6 {[%clk 0:01:17]} 19. Qxg6 {[%clk 0:02:26]}  hxg6 {[%clk 0:01:18]} 20. c3 {[%clk 0:02:26]}  Bg7 {[%clk 0:01:15]} 21. g3 {[%clk 0:02:20]}  e6 {[%clk 0:01:15]} 22. Rad1 {[%clk 0:02:19]}  Nd5 {[%clk 0:01:10]} 23. Re2 {[%clk 0:02:09]}  Rb8 {[%clk 0:01:06]} 24. Bxd5 {[%clk 0:02:02]}  cxd5 {[%clk 0:01:04]} 25. Nd6 {[%clk 0:02:02]}  Rb6 {[%clk 0:00:57]} 26. Nb5 {[%clk 0:02:02]}  Rc8 {[%clk 0:00:58]} 27. Rd3 {[%clk 0:01:58]}  Rc4 {[%clk 0:00:57]} 28. b3 {[%clk 0:01:57]}  Rc5 {[%clk 0:00:58]} 29. f4 {[%clk 0:01:46]}  Rbc6 {[%clk 0:00:54]} 30. Ree3 {[%clk 0:01:45]}  Kg8 {[%clk 0:00:46]} 31. Kg2 {[%clk 0:01:45]}  Kf8 {[%clk 0:00:45]} 32. h4 {[%clk 0:01:44]}  Ke7 {[%clk 0:00:44]} 33. Kf3 {[%clk 0:01:44]}  Kf8 {[%clk 0:00:41]} 34. Ke2 {[%clk 0:01:43]}  Bf6 {[%clk 0:00:40]} 35. Kd2 {[%clk 0:01:41]}  Rc8 {[%clk 0:00:39]} 36. Rf3 {[%clk 0:01:41]}  Kg7 {[%clk 0:00:38]} 37. Kc2 {[%clk 0:01:38]}  Be7 {[%clk 0:00:31]} 38. Rfe3 {[%clk 0:01:34]}  Bf6 {[%clk 0:00:29]} 39. Kd2 {[%clk 0:01:24]}  Be7 {[%clk 0:00:27]} 40. Re2 {[%clk 0:01:24]}  Bf6 {[%clk 0:00:28]} 41. Rh2 {[%clk 0:01:23]}  Rh8 {[%clk 0:00:16]} 42. Rf3 {[%clk 0:01:22]}  Rhc8 {[%clk 0:00:15]} 43. g4 {[%clk 0:01:18]}  Be7 {[%clk 0:00:13]} 44. h5 {[%clk 0:01:16]}  Rh8 {[%clk 0:00:14]} 45. Rfh3 {[%clk 0:01:16]}  gxh5 {[%clk 0:00:14]} 46. Rxh5 {[%clk 0:01:16]}  Rxh5 {[%clk 0:00:14]} 47. Rxh5 {[%clk 0:01:16]}  Bf6 {[%clk 0:00:15]} 48. Kd3 {[%clk 0:01:15]}  Be7 {[%clk 0:00:14]} 49. Rh3 {[%clk 0:01:14]}  Rc8 {[%clk 0:00:14]} 50. Rh1 {[%clk 0:01:07]}  Bf6 {[%clk 0:00:12]} 51. Rh5 {[%clk 0:00:58]}  Kg6 {[%clk 0:00:12]} 52. f5+ {[%clk 0:00:57]}  Kg7 {[%clk 0:00:12]} 53. g5 {[%clk 0:00:52]}  Be5 {[%clk 0:00:10]} 54. fxe6 {[%clk 0:00:51]}  fxe6 {[%clk 0:00:11]} 55. Rh6 {[%clk 0:00:51]}  Re8 {[%clk 0:00:08]} 56. c4 {[%clk 0:00:50]}  Bf4 {[%clk 0:00:08]} 57. cxd5 {[%clk 0:00:46]}  exd5 {[%clk 0:00:09]} 58. Ra6 {[%clk 0:00:46]}  Re3+ {[%clk 0:00:09]} 59. Kd4 {[%clk 0:00:45]}  Rxb3 {[%clk 0:00:09]} 60. Rxa5 {[%clk 0:00:42]}  Bxg5 {[%clk 0:00:10]} 61. Kxd5 {[%clk 0:00:42]}  Bd2 {[%clk 0:00:08]} 62. Ra6 {[%clk 0:00:42]}  Rb1 {[%clk 0:00:05]} 63. Nd4 {[%clk 0:00:43]}  Ra1 {[%clk 0:00:04]} 64. Nf5+ {[%clk 0:00:42]}  Kh8 {[%clk 0:00:03]} 65. Ra7 {[%clk 0:00:40]}  Bf4 {[%clk 0:00:03]} 66. Ke6 {[%clk 0:00:39]}  Rb1 {[%clk 0:00:03]} 67. a5 {[%clk 0:00:38]}  Ra1 {[%clk 0:00:03]} 68. Kf6 {[%clk 0:00:35]}  Bd2 {[%clk 0:00:03]} 69. a6 {[%clk 0:00:34]}  Bc3+ {[%clk 0:00:04]} 70. Kf7 {[%clk 0:00:34]}  Rh1 {[%clk 0:00:02]} 71. Ra8+ {[%clk 0:00:32]}  Kh7 {[%clk 0:00:03]} 72. Rc8 {[%clk 0:00:31]}  Ra1 {[%clk 0:00:04]} 73. Rc6 {[%clk 0:00:31]}  Bg7 {[%clk 0:00:03]} 74. Nxg7 {[%clk 0:00:29]}  Rf1+ {[%clk 0:00:03]} 75. Rf6 {[%clk 0:00:29]}  Ra1 {[%clk 0:00:00]} 76. Nf5 {[%clk 0:00:29]} 1-0


[Site "https://www.chess.com"]

[Event "Titled Tuesday Blitz May 30 Early 2023"]
[White "Novikov, Evgenij"]
[Black "Mendonca, Leon Luke"]
[WhiteFideId "4125380"]
[BlackFideId "35028561"]
[WhiteElo "2242"]
[BlackElo "2464"]
[Result "1/2-1/2"]
[Round "06"]
[TimeControl "180+2"]
[Date "2023.05.30"]
[WhiteClock "0:00:13"]
[BlackClock "0:00:33"]

1. d4 {[%clk 0:02:52]}  e6 {[%clk 0:02:54]} 2. c4 {[%clk 0:02:51]}  Bb4+ {[%clk 0:02:51]} 3. Bd2 {[%clk 0:02:50]}  Bxd2+ {[%clk 0:02:49]} 4. Qxd2 {[%clk 0:02:49]}  Nf6 {[%clk 0:02:49]} 5. Nc3 {[%clk 0:02:47]}  d5 {[%clk 0:02:49]} 6. Nf3 {[%clk 0:02:44]}  O-O {[%clk 0:02:48]} 7. e3 {[%clk 0:02:44]}  b6 {[%clk 0:02:49]} 8. cxd5 {[%clk 0:02:43]}  Nxd5 {[%clk 0:02:48]} 9. Bd3 {[%clk 0:02:41]}  Bb7 {[%clk 0:02:47]} 10. e4 {[%clk 0:02:38]}  Nxc3 {[%clk 0:02:45]} 11. bxc3 {[%clk 0:02:39]}  c5 {[%clk 0:02:41]} 12. O-O {[%clk 0:02:39]}  cxd4 {[%clk 0:02:38]} 13. cxd4 {[%clk 0:02:40]}  Nd7 {[%clk 0:02:39]} 14. Rac1 {[%clk 0:02:37]}  Rc8 {[%clk 0:02:36]} 15. Rxc8 {[%clk 0:02:36]}  Qxc8 {[%clk 0:02:37]} 16. Rc1 {[%clk 0:02:36]}  Qb8 {[%clk 0:02:38]} 17. h3 {[%clk 0:02:11]}  h6 {[%clk 0:02:37]} 18. Rc3 {[%clk 0:02:07]}  Rc8 {[%clk 0:02:36]} 19. Qc2 {[%clk 0:02:07]}  Rxc3 {[%clk 0:02:36]} 20. Qxc3 {[%clk 0:02:08]}  Qd6 {[%clk 0:02:35]} 21. Kf1 {[%clk 0:01:55]}  Kf8 {[%clk 0:02:35]} 22. Ke2 {[%clk 0:01:55]}  Ke7 {[%clk 0:02:34]} 23. g3 {[%clk 0:01:48]}  Kd8 {[%clk 0:02:26]} 24. Nd2 {[%clk 0:01:43]}  Qc6 {[%clk 0:02:21]} 25. Qxc6 {[%clk 0:01:42]}  Bxc6 {[%clk 0:02:21]} 26. f4 {[%clk 0:01:37]}  Ke7 {[%clk 0:02:19]} 27. Ke3 {[%clk 0:01:37]}  Kd6 {[%clk 0:02:15]} 28. Nc4+ {[%clk 0:01:35]}  Ke7 {[%clk 0:02:11]} 29. Ne5 {[%clk 0:01:35]}  Nxe5 {[%clk 0:02:11]} 30. fxe5 {[%clk 0:01:35]}  b5 {[%clk 0:02:11]} 31. a3 {[%clk 0:01:30]}  a5 {[%clk 0:02:11]} 32. d5 {[%clk 0:01:16]}  exd5 {[%clk 0:02:01]} 33. exd5 {[%clk 0:01:17]}  Bxd5 {[%clk 0:02:02]} 34. Bxb5 {[%clk 0:01:17]}  Be6 {[%clk 0:01:43]} 35. g4 {[%clk 0:01:09]}  f6 {[%clk 0:01:35]} 36. Ke4 {[%clk 0:01:03]}  Bc8 {[%clk 0:01:28]} 37. Bc6 {[%clk 0:00:55]}  Ba6 {[%clk 0:01:27]} 38. Kf5 {[%clk 0:00:39]}  Bd3+ {[%clk 0:01:14]} 39. Be4 {[%clk 0:00:37]}  Bxe4+ {[%clk 0:00:44]} 40. Kxe4 {[%clk 0:00:36]}  Ke6 {[%clk 0:00:45]} 41. exf6 {[%clk 0:00:36]}  Kxf6 {[%clk 0:00:46]} 42. h4 {[%clk 0:00:29]}  Ke6 {[%clk 0:00:46]} 43. a4 {[%clk 0:00:18]}  g6 {[%clk 0:00:43]} 44. h5 {[%clk 0:00:15]}  g5 {[%clk 0:00:38]} 45. Kd4 {[%clk 0:00:14]}  Kd6 {[%clk 0:00:38]} 46. Ke4 {[%clk 0:00:12]}  Ke6 {[%clk 0:00:32]} 47. Kd4 {[%clk 0:00:12]}  Kd6 {[%clk 0:00:32]} 48. Ke4 {[%clk 0:00:13]}  Ke6 {[%clk 0:00:33]} 1/2-1/2


[Site "https://www.chess.com"]

[Event "Titled Tuesday Blitz May 30 Early 2023"]
[White "Bortnyk, Olexandr"]
[Black "Boyer, Mahel"]
[WhiteFideId "14120828"]
[BlackFideId "45102422"]
[WhiteElo "2734"]
[BlackElo "2439"]
[Result "0-1"]
[Round "06"]
[TimeControl "180+2"]
[Date "2023.05.30"]
[WhiteClock "0:00:04"]
[BlackClock "0:00:10"]

1. e4 {[%clk 0:02:59]}  Nc6 {[%clk 0:03:00]} 2. Nf3 {[%clk 0:02:54]}  d5 {[%clk 0:03:00]} 3. exd5 {[%clk 0:02:53]}  Qxd5 {[%clk 0:03:01]} 4. Nc3 {[%clk 0:02:53]}  Qh5 {[%clk 0:03:01]} 5. Nb5 {[%clk 0:02:43]}  Kd8 {[%clk 0:02:56]} 6. d4 {[%clk 0:02:40]}  Bg4 {[%clk 0:02:56]} 7. d5 {[%clk 0:02:37]}  Ne5 {[%clk 0:02:38]} 8. Be2 {[%clk 0:02:32]}  Nxf3+ {[%clk 0:02:33]} 9. gxf3 {[%clk 0:02:32]}  Bd7 {[%clk 0:02:33]} 10. Qd4 {[%clk 0:01:57]}  Nf6 {[%clk 0:02:06]} 11. Bf4 {[%clk 0:01:35]}  Bxb5 {[%clk 0:02:02]} 12. Bxb5 {[%clk 0:01:35]}  Qxf3 {[%clk 0:02:02]} 13. Rg1 {[%clk 0:01:04]}  Qe4+ {[%clk 0:02:00]} 14. Qxe4 {[%clk 0:01:04]}  Nxe4 {[%clk 0:02:01]} 15. f3 {[%clk 0:00:58]}  Nd6 {[%clk 0:01:58]} 16. Bd3 {[%clk 0:00:53]}  g6 {[%clk 0:01:58]} 17. Be5 {[%clk 0:00:51]}  Rg8 {[%clk 0:01:58]} 18. O-O-O {[%clk 0:00:50]}  Bh6+ {[%clk 0:01:49]} 19. Kb1 {[%clk 0:00:49]}  f6 {[%clk 0:01:47]} 20. Bg3 {[%clk 0:00:47]}  Kd7 {[%clk 0:01:30]} 21. Rge1 {[%clk 0:00:46]}  Rge8 {[%clk 0:01:30]} 22. c4 {[%clk 0:00:42]}  b6 {[%clk 0:01:27]} 23. c5 {[%clk 0:00:22]}  bxc5 {[%clk 0:01:28]} 24. Bxd6 {[%clk 0:00:22]}  Kxd6 {[%clk 0:01:22]} 25. Bb5 {[%clk 0:00:11]}  c4 {[%clk 0:00:50]} 26. Re6+ {[%clk 0:00:11]}  Kc5 {[%clk 0:00:50]} 27. Bxe8 {[%clk 0:00:03]}  Rxe8 {[%clk 0:00:51]} 28. Kc2 {[%clk 0:00:03]}  Bf4 {[%clk 0:00:49]} 29. Rc6+ {[%clk 0:00:03]}  Kb5 {[%clk 0:00:49]} 30. Rd4 {[%clk 0:00:04]}  Bxh2 {[%clk 0:00:44]} 31. Rdxc4 {[%clk 0:00:03]}  Bd6 {[%clk 0:00:45]} 32. a3 {[%clk 0:00:02]}  e6 {[%clk 0:00:37]} 33. dxe6 {[%clk 0:00:01]}  Rxe6 {[%clk 0:00:38]} 34. b4 {[%clk 0:00:02]}  Ka4 {[%clk 0:00:36]} 35. Ra6+ {[%clk 0:00:01]}  Kb5 {[%clk 0:00:37]} 36. Rcc6 {[%clk 0:00:01]}  Re3 {[%clk 0:00:30]} 37. a4+ {[%clk 0:00:01]}  Kxb4 {[%clk 0:00:30]} 38. Rxa7 {[%clk 0:00:02]}  Re5 {[%clk 0:00:16]} 39. Rb7+ {[%clk 0:00:03]}  Kxa4 {[%clk 0:00:15]} 40. Ra6+ {[%clk 0:00:03]}  Ra5 {[%clk 0:00:16]} 41. Rxa5+ {[%clk 0:00:03]}  Kxa5 {[%clk 0:00:17]} 42. Kd3 {[%clk 0:00:03]}  h5 {[%clk 0:00:16]} 43. Ke4 {[%clk 0:00:02]}  h4 {[%clk 0:00:15]} 44. Rb8 {[%clk 0:00:02]}  h3 {[%clk 0:00:16]} 45. Rh8 {[%clk 0:00:03]}  h2 {[%clk 0:00:16]} 46. f4 {[%clk 0:00:03]}  g5 {[%clk 0:00:17]} 47. Rxh2 {[%clk 0:00:04]}  Bxf4 {[%clk 0:00:17]} 48. Rb2 {[%clk 0:00:04]}  Be5 {[%clk 0:00:16]} 49. Rb1 {[%clk 0:00:04]}  g4 {[%clk 0:00:13]} 50. Kd5 {[%clk 0:00:04]}  g3 {[%clk 0:00:13]} 51. Rg1 {[%clk 0:00:04]}  Kb5 {[%clk 0:00:12]} 52. Rb1+ {[%clk 0:00:04]}  Ka4 {[%clk 0:00:12]} 53. Kc4 {[%clk 0:00:05]}  Ka5 {[%clk 0:00:10]} 54. Kc5 {[%clk 0:00:05]}  Ka6 {[%clk 0:00:09]} 55. Kc6 {[%clk 0:00:05]}  Ka7 {[%clk 0:00:10]} 56. Rb7+ {[%clk 0:00:05]}  Ka6 {[%clk 0:00:10]} 57. Rb3 {[%clk 0:00:05]}  Ka5 {[%clk 0:00:10]} 58. Rb1 {[%clk 0:00:05]}  Ka4 {[%clk 0:00:10]} 59. Kc5 {[%clk 0:00:05]}  Ka3 {[%clk 0:00:11]} 60. Kc4 {[%clk 0:00:05]}  Ka2 {[%clk 0:00:11]} 61. Rb8 {[%clk 0:00:03]}  Ka3 {[%clk 0:00:04]} 62. Rb3+ {[%clk 0:00:02]}  Ka2 {[%clk 0:00:04]} 63. Rb8 {[%clk 0:00:03]}  Bd6 {[%clk 0:00:04]} 64. Rg8 {[%clk 0:00:02]}  f5 {[%clk 0:00:05]} 65. Kd3 {[%clk 0:00:02]}  f4 {[%clk 0:00:05]} 66. Ke4 {[%clk 0:00:02]}  Kb3 {[%clk 0:00:05]} 67. Kf3 {[%clk 0:00:02]}  Kc4 {[%clk 0:00:05]} 68. Rg6 {[%clk 0:00:03]}  Kd5 {[%clk 0:00:05]} 69. Rg5+ {[%clk 0:00:02]}  Be5 {[%clk 0:00:06]} 70. Rg8 {[%clk 0:00:02]}  c5 {[%clk 0:00:07]} 71. Rd8+ {[%clk 0:00:03]}  Bd6 {[%clk 0:00:06]} 72. Rc8 {[%clk 0:00:04]}  c4 {[%clk 0:00:07]} 73. Ra8 {[%clk 0:00:03]}  c3 {[%clk 0:00:07]} 74. Rc8 {[%clk 0:00:03]}  Be5 {[%clk 0:00:07]} 75. Ke2 {[%clk 0:00:03]}  Ke4 {[%clk 0:00:07]} 76. Rf8 {[%clk 0:00:02]}  Bd4 {[%clk 0:00:07]} 77. Re8+ {[%clk 0:00:02]}  Be5 {[%clk 0:00:07]} 78. Rf8 {[%clk 0:00:03]}  c2 {[%clk 0:00:07]} 79. Kd2 {[%clk 0:00:04]}  g2 {[%clk 0:00:08]} 80. Rg8 {[%clk 0:00:04]}  f3 {[%clk 0:00:08]} 81. Kxc2 {[%clk 0:00:05]}  Bd4 {[%clk 0:00:08]} 82. Rg4+ {[%clk 0:00:05]}  Ke5 {[%clk 0:00:07]} 83. Kd3 {[%clk 0:00:04]}  g1=Q {[%clk 0:00:07]} 84. Rxg1 {[%clk 0:00:04]}  Bxg1 {[%clk 0:00:08]} 85. Kd2 {[%clk 0:00:05]}  Kf4 {[%clk 0:00:08]} 86. Ke1 {[%clk 0:00:06]}  Kg3 {[%clk 0:00:08]} 87. Kf1 {[%clk 0:00:07]}  Bd4 {[%clk 0:00:09]} 88. Ke1 {[%clk 0:00:04]}  Kg2 {[%clk 0:00:10]} 0-1


[Site "https://www.chess.com"]

[Event "Titled Tuesday Blitz May 30 Early 2023"]
[White "Steinberg, Nitzan"]
[Black "Oleksiyenko, Mykhaylo"]
[WhiteFideId "2801795"]
[BlackFideId "4152417"]
[WhiteElo "2486"]
[BlackElo "2551"]
[Result "0-1"]
[Round "06"]
[TimeControl "180+2"]
[Date "2023.05.30"]
[WhiteClock "0:00:34"]
[BlackClock "0:01:02"]

1. Nf3 {[%clk 0:03:00]}  d5 {[%clk 0:02:55]} 2. g3 {[%clk 0:03:01]}  g6 {[%clk 0:02:55]} 3. Bg2 {[%clk 0:03:02]}  Bg7 {[%clk 0:02:56]} 4. O-O {[%clk 0:03:02]}  e5 {[%clk 0:02:56]} 5. d3 {[%clk 0:03:03]}  Ne7 {[%clk 0:02:57]} 6. Nbd2 {[%clk 0:02:59]}  O-O {[%clk 0:02:56]} 7. e4 {[%clk 0:03:00]}  c6 {[%clk 0:02:54]} 8. Re1 {[%clk 0:03:00]}  Qc7 {[%clk 0:02:52]} 9. b4 {[%clk 0:03:00]}  a5 {[%clk 0:02:43]} 10. c3 {[%clk 0:02:56]}  axb4 {[%clk 0:02:32]} 11. cxb4 {[%clk 0:02:57]}  Na6 {[%clk 0:02:24]} 12. Rb1 {[%clk 0:02:54]}  d4 {[%clk 0:02:19]} 13. a3 {[%clk 0:02:53]}  b5 {[%clk 0:02:17]} 14. h4 {[%clk 0:02:53]}  h6 {[%clk 0:02:09]} 15. Nb3 {[%clk 0:02:40]}  Be6 {[%clk 0:02:07]} 16. Bd2 {[%clk 0:02:34]}  Nc8 {[%clk 0:01:57]} 17. Qc2 {[%clk 0:02:14]}  Nb6 {[%clk 0:01:55]} 18. Rec1 {[%clk 0:02:15]}  Rfc8 {[%clk 0:01:54]} 19. Qd1 {[%clk 0:02:09]}  Na4 {[%clk 0:01:51]} 20. Kh2 {[%clk 0:02:06]}  Kh7 {[%clk 0:01:49]} 21. Bh3 {[%clk 0:02:06]}  Bxh3 {[%clk 0:01:45]} 22. Kxh3 {[%clk 0:02:06]}  Qd7+ {[%clk 0:01:45]} 23. Kg2 {[%clk 0:02:07]}  Nc7 {[%clk 0:01:37]} 24. h5 {[%clk 0:02:04]}  g5 {[%clk 0:01:32]} 25. Nh2 {[%clk 0:02:03]}  f5 {[%clk 0:01:32]} 26. exf5 {[%clk 0:02:02]}  Qxf5 {[%clk 0:01:26]} 27. Qf3 {[%clk 0:01:52]}  Qxf3+ {[%clk 0:01:21]} 28. Nxf3 {[%clk 0:01:52]}  Nd5 {[%clk 0:01:21]} 29. Na5 {[%clk 0:01:51]}  Nac3 {[%clk 0:01:20]} 30. Bxc3 {[%clk 0:01:42]}  dxc3 {[%clk 0:01:21]} 31. Re1 {[%clk 0:01:35]}  c5 {[%clk 0:01:21]} 32. Nxe5 {[%clk 0:00:44]}  cxb4 {[%clk 0:01:20]} 33. axb4 {[%clk 0:00:43]}  c2 {[%clk 0:01:17]} 34. Rbc1 {[%clk 0:00:44]}  Nxb4 {[%clk 0:01:13]} 35. Nb7 {[%clk 0:00:39]}  Bxe5 {[%clk 0:01:04]} 36. Rxe5 {[%clk 0:00:38]}  Nxd3 {[%clk 0:01:04]} 37. Re7+ {[%clk 0:00:34]}  Kg8 {[%clk 0:01:02]} 0-1


[Site "https://www.chess.com"]